Cogmind - Beta 15 @@@ ROGUE MODE // 2025.07.02 @ 15:55:47 Player: Rockstar Result: Destroyed by G-47 Trooper with Particle Gun Performance ------------- Evolutions (3) 1500 Regions Visited (7) 1400 Robots Destroyed (66) 330 Value Destroyed (2480) 2480 Prototype IDs (0) 0 Alien Tech Used (0) 0 Bonus (-31) -31 TOTAL SCORE: 5679 Bonus ------- Friendly Fire -31 Cogmind --------- Core Integrity 0/700 Matter 176/300 Energy 32/100 System Corruption 4% Temperature Cool (27) Movement Core (200) Ox3 Location -7/Lower Caves Parts ------- > --- POWER (2) -------- (None) > --- PROPULSION (4) --- (None) > --- UTILITY (5) ------ Trap Scanner Machine Analyzer Weapon Cycler EM Disruption Field System Shield > --- WEAPON (2) ------- Heavy Particle Cannon > --- INVENTORY (5) ---- (None) Peak State ------------ > --- POWER ------------ Light Ion Engine Micro Nuclear Core > --- PROPULSION ------- Armored Treads Gravmag System > --- UTILITY ---------- Improved Cooling System Coolant Injector Advanced Weight Redist. System Machine Analyzer Improved Sensor Array > --- WEAPON ----------- Advanced Assault Cannon Powered Hammer > --- INVENTORY -------- Target Analyzer Advanced Assault Cannon Mini Grenade Launcher Mini Grenade Launcher Mini Grenade Launcher [Rating: 38] Favorites ----------- Power Subdweller Power Source Engine Subdweller Power Source Power Core Light Nuclear Core Propulsion Light Treads Treads Light Treads Leg Improved Carbon-fiber Leg Hover Unit Gravmag System Flight Unit Cesium-ion Thruster Utility Small Storage Unit Device Advanced Weight Redist. System Storage Small Storage Unit Processor Machine Analyzer Hackware System Shield Protection Core Shielding Weapon Light EM Pulse Cannon Energy Gun Particle Gun Energy Cannon Light EM Pulse Cannon Ballistic Gun Shotgun Ballistic Cannon Advanced Assault Cannon Launcher Mini Grenade Launcher Impact Weapon Powered Hammer Build | -11 -10 -10 -10 -8 -7 -7 -7 ------- Run | Yrd Mat Min Sub Mat Fac Low Low Slots Evolved 6 | . . . . 4 2 . . Power 1 | . . . . 1 . . . Propulsion 2 | . . . . 1 1 . . Utility 3 | . . . . 2 1 . . Weapon . | . . . . . . . . Parts Attached 79 | 7 3 1 6 32 22 4 4 Power 12 | 2 . . 1 4 5 . . Engine 8 | 2 . . 1 3 2 . . Core 4 | . . . . 1 3 . . Reactor . | . . . . . . . . Propulsion 24 | 2 . . 1 11 8 . 2 Treads 5 | 2 . . . . 1 . 2 Leg 11 | . . . 1 8 2 . . Wheel . | . . . . . . . . Hover 1 | . . . . . 1 . . Flight 7 | . . . . 3 4 . . Utility 23 | 1 1 1 1 8 6 4 1 Device 15 | . 1 1 1 5 3 4 . Storage 2 | 1 . . . 1 . . . Processor 2 | . . . . . 1 . 1 Hackware 2 | . . . . . 2 . . Protection 2 | . . . . 2 . . . Artifact . | . . . . . . . . Weapon 20 | 2 2 . 3 9 3 . 1 Energy Gun 3 | 1 . . . 1 1 . . Energy Cannon 5 | . 2 . . 2 . . 1 Ballistic Gun 4 | 1 . . 2 . 1 . . Ballistic Cannon 5 | . . . 1 4 . . . Launcher 2 | . . . . 2 . . . Special Weapon . | . . . . . . . . Impact Weapon 1 | . . . . . 1 . . Slashing Weapon . | . . . . . . . . Piercing Weapon . | . . . . . . . . Special Melee Weapon . | . . . . . . . . Unidentified Prototypes . | . . . . . . . . Parts Lost 53 | . . . 3 17 20 4 9 Power 10 | . . . . 3 6 1 . Propulsion 20 | . . . 2 5 7 1 5 Utility 12 | . . . . 4 5 2 1 Weapon 11 | . . . 1 5 2 . 3 Highest Loss Streak 15 | . . . 3 15 8 4 4 To Critical Strikes . | . . . . . . . . Average Backups 5 | 2 7 8 7 6 5 5 3 Power . | . 1 1 1 1 . . . Propulsion 1 | 1 1 1 . 1 . 2 . Utility . | . . 2 1 . . 1 1 Weapon 3 | . 3 4 3 2 4 1 1 Tool/Special . | . . . . . . . . Unused Backups 8 | . 2 1 1 1 2 1 . Power 1 | . . . . 1 . . . Propulsion 1 | . 1 . . . . . . Utility 2 | . . 1 . . 1 . . Weapon 4 | . 1 . 1 . 1 1 . Tool/Special . | . . . . . . . . Average Slot Usage (%) 84 | . 96 99 95 84 76 76 69 Engine 8 | . 14 14 14 11 5 3 . Core 1 | . . . . 4 3 . . Treads 9 | . 28 28 20 . 2 . 13 Leg 5 | . . . 3 19 4 . . Flight 6 | . . . . 1 10 26 4 Device 16 | . 11 13 14 11 23 15 15 Storage 7 | . 14 14 14 11 2 . . Processor 3 | . . . . . 4 7 13 Hackware 1 | . . . . . . 7 7 Protection 1 | . . . . 6 . . . Energy Cannon 6 | . 26 28 2 9 . . . Ballistic Gun 4 | . . . 21 . . . 5 Ballistic Cannon 3 | . . . 3 4 6 . . Launcher 2 | . . . . 1 2 7 5 Impact Weapon 1 | . . . . . 2 7 1 Peak Build Rating 38 | 6 11 11 12 31 38 36 36 Average Rating 22 | 4 10 10 11 23 29 31 30 On Entrance 16 | . 6 11 10 11 31 31 30 Naked Turns . | . . . . . . . . Heaviest Build 30 | 13 19 20 20 29 30 11 10 Greatest Support 63 | 40 40 40 40 54 29 20 63 Greatest Overweight (x) 9 | . . . 1 9 4 . 1 Average Overweight (x) . | . . . . . . . . Largest Inventory Capacity 8 | 8 8 8 8 8 8 5 5 Average Capacity 6 | 6 8 8 8 8 6 5 5 Most Carried 8 | 4 8 8 8 8 8 5 5 Average Carried 5 | 2 7 7 7 5 5 4 3 Final Capacity 8 | 8 8 8 8 8 5 5 5 Final Carried 8 | 4 8 8 6 7 5 5 . Class Distribution -------------------- 87% | Mutant 4% | Scavenger-Mutant 4% | Scavenger-Sprinter Dominant Class ---------------- Mutant | -10/Materials Mutant | -10/Mines Mutant | -10/Subcaves Mutant | -8/Materials Mutant | -7/Factory Scavenger-Sprinter | -7/Lower Caves Mutant | -7/Lower Caves Resources | -11 -10 -10 -10 -8 -7 -7 -7 ----------- Run | Yrd Mat Min Sub Mat Fac Low Low Matter Collected 2079 | 210 90 10 139 470 733 340 87 Remotely . | . . . . . . . . Salvage Created 2035 | . 38 . 203 544 900 215 135 Parts 85 | . 6 . 14 24 32 4 5 Haulers Intercepted . | . . . . . . . . Recyclers Shooed 4 | . . . . . 4 . . Parts Field Recycled . | . . . . . . . . Retrieved Matter . | . . . . . . . . Parts Self-Destructed 7 | . . . 3 . . 1 3 Prevented 1 | . . . . . . . 1 Kills | -11 -10 -10 -10 -8 -7 -7 -7 ------- Run | Yrd Mat Min Sub Mat Fac Low Low Combat Hostiles Destroyed 55 | . 3 . 5 17 14 11 5 Melee 1 | . . . . . 1 . . Guns 9 | . . . 4 2 1 . 2 Cannons 12 | . 1 . . 5 5 . 1 AOE 28 | . 2 . . 9 6 10 1 Classes Destroyed 14 | . 1 . 1 6 4 2 . Worker 1 | . . . . . 1 . . Builder 2 | . . . . . 2 . . Recycler 7 | . . . . . 7 . . Operator 1 | . . . . 1 . . . Swarmer 9 | . 3 . . 4 . . 2 Grunt 31 | . . . . 9 12 8 2 Brawler 1 | . . . . . . 1 . Duelist 1 | . . . . . . 1 . Sentry 3 | . . . . 1 1 1 . Specialist 1 | . . . . 1 . . . Hunter 2 | . . . . 1 . . 1 Programmer 1 | . . . . . 1 . . Heavy 1 | . . . . 1 . . . Subdweller 5 | . . . 5 . . . . Best Kill Streak 11 | . 3 . 1 8 11 8 4 Combat Bots Only 8 | . 3 . 1 8 4 8 4 Max Kills in Single Turn 4 | . 2 . 1 4 3 3 1 Gunslinging . | . . . . . . . . Exploded 4 | . 2 . . 4 2 3 1 Melee 1 | . . . . . 1 . . Uniques/NPCs Destroyed . | . . . . . . . . Combat | -11 -10 -10 -10 -8 -7 -7 -7 -------- Run | Yrd Mat Min Sub Mat Fac Low Low Hostile Shots Fired 503 | . 7 . 37 162 191 28 78 Missed 158 | . . . 13 43 74 11 17 Hits 345 | . 7 . 24 119 117 17 61 Melee 8 | . . . . . 6 2 . Projectile 337 | . 7 . 24 119 111 15 61 Critical Strikes 11 | . . . . 6 4 . 1 Damage Taken 6138 | . 90 . 581 2310 1747 382 1028 Core 1274 | . . . 39 527 320 114 274 Absorbed by Shields . | . . . . . . . . Redirected to Shielding 51 | . . . . 51 . . . Regen/Repaired (Parts) 43 | . . . . . 43 . . Core Remaining (%) 62 | 100 . . 84 4 . . . Volleys Fired 142 | . 2 . 25 32 44 19 20 Largest 2 | . 2 . 2 2 2 1 2 Hottest 119 | . 112 . 112 119 105 30 103 Shots Fired 239 | . 4 . 50 61 81 19 24 Gun 72 | . . . 34 11 9 . 18 Cannon 124 | . 4 . 16 45 57 . 2 Launcher 43 | . . . . 5 15 19 4 Special . | . . . . . . . . Kinetic 136 | . . . 42 19 57 . 18 Thermal 19 | . . . . 8 9 . 2 Explosive 43 | . . . . 5 15 19 4 Electromagnetic 41 | . 4 . 8 29 . . . Robot Hit Streak 12 | . 2 . 12 6 8 9 11 Robot Miss Streak 4 | . 1 . 2 4 3 2 2 Penetration Max . | . . . . . . . . Secondary Targets . | . . . . . . . . Shots Hit Robots 183 | . 2 . 46 35 60 16 24 Core Hits 130 | . 4 . 13 30 40 32 11 Critical Kills . | . . . . . . . . Critical Parts Destroyed 4 | . . . . . 1 2 1 Critical Strikes 7 | . . . . 1 3 2 1 Blast 2 | . . . . . 2 . . Corrupt 1 | . . . . 1 . . . Smash 4 | . . . . . 1 2 1 Melee Attacks 23 | . . . . . 15 2 6 Impact 23 | . . . . . 15 2 6 Slashing . | . . . . . . . . Piercing . | . . . . . . . . Sneak Attacks 2 | . . . . . 2 . . Combat Hostiles . | . . . . . . . . Follow-up Attacks . | . . . . . . . . Damage Inflicted 7564 | . 121 24 580 1525 2714 1653 947 Guns 808 | . . . 336 105 80 . 287 Cannons 2000 | . 37 . 244 679 990 . 50 Explosions 3889 | . 84 . . 741 1104 1564 396 Melee 828 | . . . . . 525 89 214 Ramming 39 | . . 24 . . 15 . . Kinetic 1983 | . . . 420 286 990 . 287 Thermal 414 | . 84 . . 200 80 . 50 Explosive 3669 | . . . . 605 1104 1564 396 Electromagnetic 631 | . 37 . 160 434 . . . Impact 828 | . . . . . 525 89 214 Slashing . | . . . . . . . . Piercing . | . . . . . . . . Highest Corruption 4 | . . . . . 4 4 4 Average Corruption 3 | . . . . . 2 4 4 Corruption Purged . | . . . . . . . . Corruption Blocked . | . . . . . . . . Effects 23 | . . . . . 8 8 7 Message Errors 6 | . . . . . 2 4 . Matter Fused 5 | . . . . . 3 2 . Heat Flow Errors 6 | . . . . . 2 1 3 Energy Discharges 2 | . . . . . . 1 1 Parts Rejected 1 | . . . . . . . 1 Data Loss (minor) 2 | . . . . . 1 . 1 Data Loss (major) 1 | . . . . . . . 1 Overload Shots . | . . . . . . . . Overflow Damage 400 | . . . 8 60 185 88 59 Projectiles 46 | . . . 8 . 38 . . Explosions 135 | . . . . 60 24 29 22 Melee 219 | . . . . . 123 59 37 Knockbacks 23 | . . . 2 2 15 1 3 Impact 6 | . . . . . 2 1 3 Kinetic 17 | . . . 2 2 13 . . Secondary . | . . . . . . . . Self-Inflicted Damage 321 | . 40 . . 130 125 26 . Shots 10 | . 1 . . 4 4 1 . Rammed 3 | . . 2 . . 1 . . Targets Rammed 6 | . . 2 . . 4 . . Kicked 3 | . . . . . 3 . . Crushed . | . . . . . . . . Highest Temperature 255 | . 114 . 3 197 255 83 235 Average Temperature 66 | . 59 . 3 61 75 22 78 Received Heat Transfer 1896 | . . . 141 828 594 108 225 Siege Activations . | . . . . . . . . Martial Activations . | . . . . . . . . Shielding Activations . | . . . . . . . . Robots Disrupted . | . . . . . . . . Combat Hostiles . | . . . . . . . . Robots Corrupted 5 | . . . 1 1 1 1 1 Combat Hostiles 5 | . . . 1 1 1 1 1 Parts Fried 5 | . . . 1 2 2 . . Impact Corruptions 9 | . . . . . 4 3 2 Robots Melted . | . . . . . . . . Combat Hostiles . | . . . . . . . . Parts Melted . | . . . . . . . . Heat Transferred 584 | . 100 . . 225 185 . 74 Parts Sabotaged . | . . . . . . . . Parts Stolen . | . . . . . . . . Parts Stripped . | . . . . . . . . Power Chain Reactions 3 | . 1 . . 2 . . . Alert | -11 -10 -10 -10 -8 -7 -7 -7 ------- Run | Yrd Mat Min Sub Mat Fac Low Low Maximum Alert Level 1 | . . . . 1 . . . Low Security (%) 98 | 100 100 100 . 96 100 . . Level 1 1 | . . . . 3 . . . Level 2 . | . . . . . . . . Level 3 . | . . . . . . . . Level 4 . | . . . . . . . . Level 5 . | . . . . . . . . High Security . | . . . . . . . . Max Security . | . . . . . . . . Peak Influence 211 | . 72 . . 211 173 . . Initial 70 | . . . . . 70 . . Average 64 | . 28 . . 65 97 . . Influence Increases 1570 | . 77 . . 520 603 230 140 Destroy 0b10 Robot/C 1000 | . 60 . . 340 280 220 100 Destroy 0b10 Robot/NC 55 | . . . . 5 50 . . Destroy Leader 180 | . 10 . . 80 70 10 10 Successful Hack 13 | . 5 . . . 8 . . Disable Machine 105 | . . . . 45 60 . . Destroy Structure 112 | . 2 . . 35 75 . . Partial Spotted 15 | . . . . . 15 . . Lose Combat Pursuer 90 | . . . . 15 45 . 30 Influence Decreases 1520 | . 77 . . 365 707 230 141 Entered New Map 116 | . . . . . 85 20 11 Time Decay 972 | . 77 . . 233 422 170 70 Lost Part 432 | . . . . 132 200 40 60 Squads Dispatched 13 | . . . . 5 8 . . Investigation 2 | . . . . 1 1 . . Extermination 1 | . . . . . 1 . . Reinforcement 7 | . . . . 4 3 . . Assault . | . . . . . . . . Garrison 3 | . . . . . 3 . . Intercept . | . . . . . . . . Searches Triggered . | . . . . . . . . Construction Impeded 2 | . . . . . 2 . . Haulers Reinforced . | . . . . . . . . Active Scanning Responses . | . . . . . . . . Cargo Convoy Interrupts . | . . . . . . . . Stealth | -11 -10 -10 -10 -8 -7 -7 -7 --------- Run | Yrd Mat Min Sub Mat Fac Low Low Distress Signals 1 | . . . . . 1 . . Communications Jammed . | . . . . . . . . Distress Signals . | . . . . . . . . Times Spotted 74 | . 4 . 6 22 20 12 10 Peak Tracking Total 9 | . 3 . 2 8 5 9 7 Tactical Retreats 5 | . . . . 1 3 . 1 Traps | -11 -10 -10 -10 -8 -7 -7 -7 ------- Run | Yrd Mat Min Sub Mat Fac Low Low Traps Triggered 3 | . . . . 1 2 . . Indirectly . | . . . . . . . . Trap Hack Attempts . | . . . . . . . . Triggered . | . . . . . . . . Disarmed . | . . . . . . . . Reprogrammed . | . . . . . . . . Reused . | . . . . . . . . Traps Extracted . | . . . . . . . . Installed . | . . . . . . . . Triggered . | . . . . . . . . Machines | -11 -10 -10 -10 -8 -7 -7 -7 ---------- Run | Yrd Mat Min Sub Mat Fac Low Low Machines Disabled 11 | . . . . 3 4 2 2 Max in Single Turn 1 | . . . . 1 1 1 1 Machines Repaired . | . . . . . . . . Machines Dismantled . | . . . . . . . . Machines Sabotaged . | . . . . . . . . Overloaded Fab Kills . | . . . . . . . . Hacking | -11 -10 -10 -10 -8 -7 -7 -7 --------- Run | Yrd Mat Min Sub Mat Fac Low Low Machines Accessed 7 | . 3 . . 1 3 . . Terminals 4 | . 2 . . 1 1 . . Fabricators 1 | . . . . . 1 . . Repair Stations 1 | . . . . . 1 . . Recycling Units 1 | . 1 . . . . . . Scanalyzers . | . . . . . . . . Garrison Access . | . . . . . . . . Total Hacks 17 | . 5 . . 2 10 . . Successful 10 | . 3 . . 1 6 . . Failed 7 | . 2 . . 1 4 . . Catastrophic . | . . . . . . . . Database Lockouts . | . . . . . . . . Manual 1 | . 1 . . . . . . Terminals 9 | . 4 . . 2 3 . . Fabricators 2 | . . . . . 2 . . Repair Stations 5 | . . . . . 5 . . Recycling Units 1 | . 1 . . . . . . Scanalyzers . | . . . . . . . . Garrison Access . | . . . . . . . . Terminal Hacks 4 | . 2 . . 1 1 . . Open DSF 1 | . . . . . 1 . . Alert Level 1 | . 1 . . . . . . Investigation Status 1 | . . . . 1 . . . Zone Layout 1 | . 1 . . . . . . Fabricator Hacks . | . . . . . . . . Repair Station Hacks 5 | . . . . . 5 . . Scan Component 3 | . . . . . 3 . . Repair 2 | . . . . . 2 . . Recycling Unit Hacks 1 | . 1 . . . . . . Report Inventory 1 | . 1 . . . . . . Scanalyzer . | . . . . . . . . Garrison Access Hacks . | . . . . . . . . Unauthorized Hacks . | . . . . . . . . Terminals . | . . . . . . . . Fabricators . | . . . . . . . . Repair Stations . | . . . . . . . . Recycling Units . | . . . . . . . . Scanalyzers . | . . . . . . . . Garrison Access . | . . . . . . . . Data Cores Recovered . | . . . . . . . . Used . | . . . . . . . . Hacking Detections 6 | . 2 . . 1 3 . . Full Trace Events 1 | . . . . . 1 . . Feedback Events . | . . . . . . . . Feedback Blocked . | . . . . . . . . Robot Schematics Acquired . | . . . . . . . . Robots Built . | . . . . . . . . Authchips . | . . . . . . . . Time . | . . . . . . . . Total Robot Build Rating . | . . . . . . . . Part Schematics Acquired . | . . . . . . . . Parts Built . | . . . . . . . . Authchips . | . . . . . . . . Time . | . . . . . . . . Total Part Build Rating . | . . . . . . . . Parts Repaired 2 | . . . . . 2 . . Time 70 | . . . . . 70 . . Parts Recycled . | . . . . . . . . Recycled Matter . | . . . . . . . . Retrieved Matter . | . . . . . . . . Retrieved Components . | . . . . . . . . Parts Scanalyzed . | . . . . . . . . Part Schematics Acquired . | . . . . . . . . Parts Damaged . | . . . . . . . . Bothacking | -11 -10 -10 -10 -8 -7 -7 -7 ------------ Run | Yrd Mat Min Sub Mat Fac Low Low Used RIF Installer . | . . . . . . . . Robots Hacked . | . . . . . . . . Non-combat . | . . . . . . . . Combat . | . . . . . . . . Robot Hacks Applied . | . . . . . . . . Relay Couplers Released . | . . . . . . . . Fabnet Peak Effective % . | . . . . . . . . Robots Rewired . | . . . . . . . . Allies Hacked . | . . . . . . . . Hacks Repelled . | . . . . . . . . Allies | -11 -10 -10 -10 -8 -7 -7 -7 -------- Run | Yrd Mat Min Sub Mat Fac Low Low Total Allies . | . . . . . . . . Largest Group . | . . . . . . . . Highest-Rated Group . | . . . . . . . . Highest-Rated Ally . | . . . . . . . . Total Orders . | . . . . . . . . Ally Attacks . | . . . . . . . . Total Damage . | . . . . . . . . Kills . | . . . . . . . . Allies Corrupted . | . . . . . . . . Allies Melted . | . . . . . . . . Intel | -11 -10 -10 -10 -8 -7 -7 -7 ------- Run | Yrd Mat Min Sub Mat Fac Low Low Active Infowar (turns) 2418 | . . 320 428 18 1039 341 272 Optics 360 | . . . 360 . . . . Sensors 830 | . . . . 18 812 . . Terrain 33 | . . . . . . 33 . Traps 262 | . . . . . . 102 160 Machine Analysis 1296 | . . . . . 683 341 272 ECM 388 | . . 320 68 . . . . Robot Analysis Total . | . . . . . . . . Derelict Logs Recovered 4 | . . 1 1 . . 2 . Drone Launches . | . . . . . . . . Drone Recoveries . | . . . . . . . . Exploration | -11 -10 -10 -10 -8 -7 -7 -7 ------------- Run | Yrd Mat Min Sub Mat Fac Low Low Turns Passed 3532 | 79 221 341 548 691 1039 341 272 Spaces Moved 2660 | 43 125 210 273 369 705 744 191 Core 77 | 2 . . . 20 55 . . Treads 767 | 41 125 210 213 . 97 . 81 Legs 464 | . . . 60 331 73 . . Wheels . | . . . . . . . . Hover 53 | . . . . . 53 . . Flight 1299 | . . . . 18 427 744 110 Fastest Speed 28 | 50 160 160 160 100 28 28 37 Average Speed 100 | 154 160 160 166 138 96 31 91 Slowest Speed 500 | 160 160 160 190 500 250 37 166 Overloaded Moves . | . . . . . . . . Propulsion Burnouts . | . . . . . . . . Robots Hopped 7 | . . . . . 7 . . Potential Cave-ins 2 | . . . . . 2 . . Cave-ins Triggered . | . . . . . . . . Exploration Rate (%) 34 | 3 26 44 25 29 20 96 32 Regions Visited 7 Branch Regions 4 Pre-discovered Areas . | . . . . . . . . Known Exits Taken . | . . . . . . . . Unknown Exits Taken 7 | 1 1 1 1 1 1 1 . Scrap Searched 10 | . . 1 3 . . 4 2 Spaces Dug . | . . . . . . . . Terrain Destroyed 218 | . 2 . . 38 89 67 22 Melee . | . . . . . . . . Projectile 6 | . . . . 2 3 . 1 AOE 212 | . 2 . . 36 86 67 21 Terrain Rammed . | . . . . . . . . Walls Destroyed . | . . . . . . . . Machines Disabled . | . . . . . . . . Actions | -11 -10 -10 -10 -8 -7 -7 -7 --------- Run | Yrd Mat Min Sub Mat Fac Low Low Total 3227 | 52 144 214 319 484 936 826 252 Wait 194 | . 1 . 7 16 103 47 20 Move 2640 | 42 124 209 272 368 691 743 191 Hop 6 | . . . . . 6 . . Pick Up 44 | 3 7 . 4 17 9 3 1 Fast Attach 43 | 6 3 1 . 11 17 4 1 Attach 39 | . . . 3 18 10 1 7 Detach 15 | . 2 1 . 6 4 1 1 Swap 30 | 1 . . 3 8 11 2 5 Drop 27 | . 5 1 5 8 4 4 . Fire 142 | . 2 . 25 32 44 19 20 Melee 23 | . . . . . 15 2 6 Ram 1 | . . . . . 1 . . Kick 3 | . . . . . 3 . . Crush 2 | . . 2 . . . . . Escape Stasis 18 | . . . . . 18 . . Rewire . | . . . . . . . . Trap . | . . . . . . . . Miscellaneous . | . . . . . . . . Route ------- -11/Scrapyard -10/Materials -10/Mines -10/Subcaves -8/Materials -7/Factory -7/Lower Caves -7/Lower Caves History --------- Turn | Location | Event 6 | -11/Scrapyard | Discovered new exit (range 15) 80 | -11/Scrapyard | Entered Materials 244 | -10/Materials | Discovered new exit (range 7) 301 | -10/Materials | Entered Mines 312 | -10/Mines | Build established: Mutant 413 | -10/Mines | Learned Materials terminal intel 448 | -10/Mines | Found a hidden stash of uninstalled traps 634 | -10/Mines | Discovered new exit (range 6) 642 | -10/Mines | Entered Subcaves 643 | -10/Subcaves | Approached by a straggling Scientist 1014 | -10/Subcaves | Ambushed by Subdwellers from Twisted Machinery 1016 | -10/Subcaves | Shifting Twisted Machinery released Battle Cannon 1085 | -10/Subcaves | Lost 3 parts (2n1w) 1089 | -10/Subcaves | Shifting Twisted Machinery released Shrapnel Trap 1169 | -10/Subcaves | Discovered new exit (range 13) 1171 | -10/Subcaves | Learned Materials emergency access door positions 1190 | -10/Subcaves | Entered Materials 1190 | -8/Materials | Evolved 4 slots: Power x1, Propulsion x1, Utility x2 1192 | -8/Materials | Loaded intel: 12 terminal locations 1711 | -8/Materials | Core integrity fell below 50% 1735 | -8/Materials | Core integrity fell below 20% 1755 | -8/Materials | Discovered new exit (range 10) 1767 | -8/Materials | Destroyed 8 combat bots 1767 | -8/Materials | Lost 15 parts (3p5n4u3w) 1881 | -8/Materials | Entered Factory 1881 | -7/Factory | Evolved 2 slots: Propulsion x1, Utility x1 1890 | -7/Factory | Repaired Adv. Weight Redist. System 1922 | -7/Factory | Repaired Mni. Grenade Launcher 2246 | -7/Factory | Garrison activated, responded to threat 2306 | -7/Factory | Lost 8 parts (1p5n2u) 2476 | -7/Factory | Lost 3 parts (1p2n) 2773 | -7/Factory | Lost 6 parts (2p3u1w) 2916 | -7/Factory | Discovered new exit (range 8) 2920 | -7/Factory | Entered Lower Caves 2924 | -7/Lower Caves | Learned Factory garrison access intel 2999 | -7/Lower Caves | Learned Factory stockpile data 3058 | -7/Lower Caves | Attracted the attention of an 0b10 outpost 3064 | -7/Lower Caves | Core integrity fell below 50% 3102 | -7/Lower Caves | Destroyed 8 combat bots 3111 | -7/Lower Caves | Lost 4 parts (1p1n2u) 3244 | -7/Lower Caves | Discovered new exit (range 10) 3261 | -7/Lower Caves | Entered another Lower Caves area 3350 | -7/Lower Caves | Lost 3 parts (3n) 3485 | -7/Lower Caves | Attracted the attention of an 0b10 base 3520 | -7/Lower Caves | Core integrity fell below 20% 3533 | -7/Lower Caves | Destroyed by G-47 Trooper with Particle Gun Last Messages --------------- S-27 Virus destroyed. Slug penetrates Wall. Slug penetrates S-27 Virus. Penetrated by Slug. Slug penetrates Y-64 Sentinel. Penetrated by Slug. Slug penetrates Y-64 Sentinel. Destroyed Lgt. Nuclear Core. S-27 Virus destroyed. Penetrated by Slug. Autogun fries itself beyond repair. Arm. Treads destroyed. Slug penetrates G-47 Trooper. Destroyed Imp. Heat Sink. Penetrated by Slug. Arm. Treads destroyed. Gauss Rifle destroyed. Mni. Grenade Launcher destroyed. G-47 Trooper destroyed. Penetrated by Slug. Map ----- +----------------------------------------------------+ | | | | | ?????????????????????????????????????????????????? | | ?????????????????????????????????????????????????? | | ?????????????????????????????????????????????????? | | ?????????????????????????????????????????????????? | | ?????????????????????????????????????????????????? | | ?????????????????????????????????????????????????? | | ?????????????????????????????????????????????????? | | ?????????????????????????????????????????????????? | | ?????????????????????????????????????????????????? | | ???????????????????####?#######??????????????????? | | ???????????????????# ? ??????????????????? | | ???????????????????# ? ??????????????????? | | ???????????????????# ### ##?????????????????? | | ???????????????????# #" ]??????????????????? | | ???????????????????# #" ]??????????????????? | | ???????????????????# #" ""#????????????##### | | ???????????????????# # #???????????## | | ???????????????????# # #??????????## | | ???????????????????# #"" #????????### | | ?????????????????### #"T #???????## | | ????????????????## #"" ????????## | | ???????????????## #?" % "?????????## | | ???????????????# ##Y###### #?## | | ????????????????# [ g @ #?# | | ????????????????# % g ### ## | | ???????????????# ## ##### ### | | ???????????????# # ###### ##?# | | ???????????????## # ## ## ### ##??# | | ????????????????## ;#??? ### #?## #???# | | ???????????????## ##??? ##% ### #???? | | ??????????????## #########! ## ##### #? | | ??????????????# ##???## #???## | | ??????????????# #????# ##????## | | ??????????????## #????# #####??###### | | ???????????????## ## #???## #???????? | | ???????????????## ## ##?## #??????? | | ???????????????# ### #?????? | | ?????????? ??# " | | ?????????? ?# " | | ?????????? #### ### ## #### ? ?? | | ????????????????## ###?########??? ??? | | ?????????????????### #?????????????? ##?? | | ???????????????????## ##?????????????? ??? | | ????????????????????# ???????????????? ??? | | ????????????????????# ???????????????? ????? | | ????????????????????# ?????????????????$###??????? | | ????????????????????# ???????????????????????????? | | ????????????????????# ???????????????????????????? | +----------------------------------------------------+ Best States ------------- Heat Dissipation 61 Coolant Potential 65 Energy Generation 25 Energy Capacity 500 Matter Stores 300 Matter Capacity 300 Sight Range 21 Robot Scan Range 15 Terrain Scan Range 16 Terrain Scan Density 10 ECM Strength 1 Additional Mass Support 9 Armor Coverage 150 Core Shielding 20 Weapon Cycling 15 Evasion (%) 70 Core Analysis 6 Recoil Reduction 3 Offensive Hacking 10 Defensive Hacking 10 Item Schematics ----------------- None Robot Schematics ------------------ None Fabricated ------------ Nothing Repaired ---------- Mni. Grenade Launcher | 14% | -7/Factory Alien Tech Used ----------------- None Achievements -------------- Close Call Let's See Who's Tougher Challenges ------------ None Game ------ Seed AdvancedStorageOptics Manual? 0 Play Time 01:17:41 Cumulative 22.3 hours Start 2025.07.02 @ 13:15:11 End 2025.07.02 @ 15:55:47 Sessions 1 Manual Loads 0 Difficulty Rogue Special Mode None Game No. 15 Rogue 12 Adventurer 1 Explorer 2 Win Type - Total 0 Types 0/0/0/0/0/0/0/0/0/0 Lore% 17 Gallery% 21 Achievement% 19 Wizard Run 0 Options --------- Layout 0 ASCII 0 Keyboard 0 Movement Mouse Keybinds 0 Fullscreen 2 Font 24/Smallcaps Map View 76x50 Zoom Use 0% Tactical HUD 0 Map Filters NONE Filters NONE Steam 1 RUN: 1e23133e-7fc5-4e67-9e0f-feb6e825430b